Cogmind - Beta 9.2 @@@ ROGUE MODE // 2019.11.25 @ 23:32:51 Player: Fleshy Vegetable Bird Result: Destroyed 0B10! Performance ------------- Evolutions (9) 4500 Regions Visited (24) 4800 Robots Destroyed (179) 895 Value Destroyed (6047) 6047 Prototype IDs (44) 880 Alien Tech Used (4) 800 Bonus (12984) 12984 TOTAL SCORE: 30906 Bonus ------- High Alert Combat Kills 545 Follower Combat Kills 1705 A7 Reached Mainframe 300 Met R17 at Cetus 500 Hacked Protovariant 500 Met Sigix 2000 Escaped with Sigix 5000 Win 3000 Friendly Fire -566 Cogmind --------- Core Integrity 1352/1600 Matter 103/300 Energy 677/770 System Corruption 5% Temperature Cool (3) Movement Flying (32) Location Tau Ceti IV Orbit Parts ------- > --- POWER (2) -------- Micro Fission Core > --- PROPULSION (6) --- Cooled Nuclear Pulse Thruster Nuclear Pulse Array Impulse Thruster Array > --- UTILITY (15) ----- Large Storage Unit Large Storage Unit Improved Energy Well Advanced Weight Redist. System Advanced Signal Interpreter Advanced Terrain Scan Processor Advanced Melee Analysis Suite Advanced Core Analyzer Improved Hacking Suite Advanced Hacking Suite Advanced Hacking Suite Advanced Hacking Suite > --- WEAPON (2) ------- Enhanced Force Lance > --- INVENTORY (16) --- Light Antimatter Reactor Impulse Thruster Experimental Power Amplifier Advanced System Shield Improved KE Penetrator Linear Accelerator Perforator Fusion Bomb Launcher Point Singularity Launcher Enhanced Force Lance Sigix Containment Pod Peak State ------------ > --- POWER ------------ Micro Fission Core Light Quantum Reactor > --- PROPULSION ------- Cooled Nuclear Pulse Thruster Nuclear Pulse Array Impulse Thruster Impulse Thruster Array > --- UTILITY ---------- Large Storage Unit Large Storage Unit Improved Energy Well Advanced Weight Redist. System Long-range Sensor Array Advanced Signal Interpreter Long-range Terrain Scanner Advanced Terrain Scan Processor Advanced Melee Analysis Suite Advanced Core Analyzer Light Regenerative Plating Improved Hacking Suite Advanced Hacking Suite Advanced Hacking Suite Advanced Hacking Suite > --- WEAPON ----------- Perforator > --- INVENTORY -------- Light Antimatter Reactor Nuclear Pulse Array Impulse Thruster Experimental Power Amplifier Advanced System Shield Improved KE Penetrator Linear Accelerator Fusion Bomb Launcher Point Singularity Launcher Enhanced Force Lance Enhanced Force Lance Sigix Containment Pod [Rating: 163] Favorites ----------- Power Micro Fission Core Engine Cooled Ion Engine Power Core Micro Fission Core Reactor Light Quantum Reactor Propulsion Nuclear Pulse Array Treads Light Treads Wheel Wheel Hover Unit Combat Airjet Flight Unit Nuclear Pulse Array Utility Large Storage Unit Device Long-range Sensor Array Storage Large Storage Unit Processor Advanced Signal Interpreter Hackware Improved Hacking Suite Protection Hardened Light Armor Plating Artifact Matter Drive Weapon Lance Energy Gun EM Shotgun Energy Cannon Advanced Beam Cannon Ballistic Gun Improved KE Penetrator Ballistic Cannon Assault Cannon Launcher Advanced EMP Blaster Special Weapon Plasma Cutter Impact Weapon Heavy Flail Piercing Weapon Lance Build | -11 -10 -9 -8 -7 -6 -6 -6 -5 -5 -5 -5 -5 -5 -5 -4 -4 -4 -4 -4 -3 -3 -2 -2 -1 ------- Run | Scr Mat Mat Mat Fac Fac Was Fac Fac Was Fac Ext Cet Arc Hub Fac Was Fac Upp Upp Res Qua Res Tes Acc Slots Evolved 18 | . . 2 2 2 2 . . 2 . . . . . . 2 . . . . 2 . 2 . 2 Power 1 | . . . . . 1 . . . . . . . . . . . . . . . . . . . Propulsion 4 | . . . 1 . . . . 2 . . . . . . . . . . . 1 . . . . Utility 13 | . . 2 1 2 1 . . . . . . . . . 2 . . . . 1 . 2 . 2 Weapon . | . . . . . . . . . . . . . . . . . . . . . . . . . Parts Attached 256 | 5 4 27 29 19 32 2 9 7 8 1 11 16 2 1 9 . 6 1 1 9 13 3 15 26 Power 22 | 1 . 2 4 1 4 . 1 . . . 2 2 . . 2 . 1 . . . . . 1 1 Engine 8 | 1 . 2 3 . 1 . . . . . 1 . . . . . . . . . . . . . Core 13 | . . . 1 1 3 . 1 . . . 1 2 . . 2 . 1 . . . . . 1 . Reactor 1 | . . . . . . . . . . . . . . . . . . . . . . . . 1 Propulsion 54 | 1 1 4 9 7 8 . . 1 5 . 1 5 . . 4 . 1 . . 2 . 1 1 3 Treads 15 | . . . 9 1 . . . . . . . 5 . . . . . . . . . . . . Leg . | . . . . . . . . . . . . . . . . . . . . . . . . . Wheel 5 | 1 1 3 . . . . . . . . . . . . . . . . . . . . . . Hover 8 | . . . . 3 4 . . 1 . . . . . . . . . . . . . . . . Flight 26 | . . 1 . 3 4 . . . 5 . 1 . . . 4 . 1 . . 2 . 1 1 3 Utility 89 | 2 2 2 6 7 11 2 4 5 . . 3 2 2 . 3 . 3 1 1 5 6 2 7 13 Device 37 | . . . . 3 6 2 2 . . . 1 . 1 . 2 . 2 1 1 4 2 2 4 4 Storage 11 | 2 2 . 1 1 . . . 1 . . . 1 . . . . . . . . . . 1 2 Processor 11 | . . 1 1 3 3 . . 1 . . . . . . . . . . . . . . . 2 Hackware 18 | . . . 2 . 1 . 2 3 . . . . 1 . 1 . 1 . . . 2 . 2 3 Protection 11 | . . 1 2 . 1 . . . . . 2 1 . . . . . . . 1 1 . . 2 Artifact 1 | . . . . . . . . . . . . . . . . . . . . . 1 . . . Weapon 91 | 1 1 19 10 4 9 . 4 1 3 1 5 7 . 1 . . 1 . . 2 7 . 6 9 Energy Gun 17 | 1 1 9 4 . . . . . . . . 1 . . . . . . . . 1 . . . Energy Cannon 6 | . . 2 2 . 1 . . . . . . . . . . . . . . . . . 1 . Ballistic Gun 4 | . . 1 1 . . . . . . . . 1 . . . . 1 . . . . . . . Ballistic Cannon 24 | . . . 2 3 6 . 2 . 1 1 3 2 . . . . . . . . . . 1 3 Launcher 7 | . . . 1 . . . . . 2 . 1 2 . . . . . . . . . . . 1 Special Weapon 7 | . . 7 . . . . . . . . . . . . . . . . . . . . . . Impact Weapon 6 | . . . . 1 2 . 2 . . . . . . . . . . . . . 1 . . . Slashing Weapon . | . . . . . . . . . . . . . . . . . . . . . . . . . Piercing Weapon 20 | . . . . . . . . 1 . . 1 1 . 1 . . . . . 2 5 . 4 5 Special Melee Weapon . | . . . . . . . . . . . . . . . . . . . . . . . . . Unidentified Prototypes 28 | . . 3 2 . 3 1 . . 2 . . 4 . . 1 . . 1 . 2 3 . 5 1 Parts Lost 43 | . . 8 14 . 4 . . 1 1 . 2 1 1 . . . . . . 1 . . . 10 Power 4 | . . . 2 . . . . . . . 1 . . . . . . . . . . . . 1 Propulsion 15 | . . 2 6 . 2 . . . 1 . 1 1 . . . . . . . . . . . 2 Utility 13 | . . 1 1 . 2 . . 1 . . . . 1 . . . . . . . . . . 7 Weapon 11 | . . 5 5 . . . . . . . . . . . . . . . . 1 . . . . Highest Loss Streak 5 | . . 3 3 . 4 . . 1 1 . 1 1 1 . . . . . . 1 . . . 5 Average Slot Usage (%) 91 | . 96 95 91 96 92 100 100 92 88 92 88 87 86 88 88 89 88 89 89 89 87 79 90 87 Engine 3 | . 14 11 7 3 . . . . . . 2 . . . . . . . . . . . . . Core 6 | . . . 1 3 9 13 13 11 11 11 7 11 11 11 10 10 10 10 10 9 9 8 8 4 Treads 5 | . . . 22 9 . . . . . . . 12 17 17 . . . . . . . . . . Wheel 4 | . 28 21 1 . . . . . . . . . . . . . . . . . . . . . Hover 2 | . . . . . 7 20 20 22 2 . . . . . . . . . . . . . . . Flight 7 | . . . . 12 11 . . . 19 23 17 3 . . 14 15 14 15 15 19 19 14 17 15 Device 7 | . . . . 12 18 20 20 12 11 11 8 . . 5 14 15 14 15 15 18 11 8 8 10 Storage 12 | . 28 22 18 14 6 6 6 5 5 5 5 10 11 11 10 10 10 10 10 9 9 8 11 12 Processor 12 | . . 10 17 14 15 13 13 11 11 11 11 11 11 11 10 10 10 10 10 9 9 8 8 14 Hackware 10 | . . . 2 7 8 13 13 14 17 17 17 17 15 17 15 15 15 15 15 14 18 17 21 16 Protection 3 | . . 8 3 . 1 . . . . . 2 5 4 . . . . . . . . 4 4 3 Energy Gun 3 | . 24 13 4 . . . . . . . . . . . . . . . . . . . . . Ballistic Cannon 3 | . . . 2 12 8 13 11 5 . 3 6 4 5 5 5 5 3 . . . . . . . Special Weapon 1 | . . 5 . . . . . . . . . . . . . . . . . . . . . . Piercing Weapon 2 | . . . . . . . . 4 5 5 3 . . . 5 5 5 5 5 4 8 8 7 6 Naked Turns . | . . . . . . . . . . . . . . . . . . . . . . . . . Heaviest Build 75 | 15 41 52 71 72 39 34 35 43 52 43 51 66 64 59 57 57 58 55 56 60 62 59 64 75 Greatest Support 183 | 10 20 26 60 60 75 68 68 80 71 46 48 183 183 183 59 59 59 59 59 75 75 66 66 75 Greatest Overweight (x) 8 | 1 2 5 3 8 1 . . . 1 . 1 . . . . . . . 4 . . 1 1 1 Average Overweight (x) . | . . 1 1 . . . . . . . . . . . . . . . . . . . . . Largest Inventory Capacity 22 | 8 16 16 18 22 8 8 8 10 10 10 10 16 16 16 16 16 16 16 16 16 16 16 16 16 Average Capacity 14 | 6 12 16 17 14 8 8 8 9 10 10 10 15 16 16 16 16 16 16 16 16 16 16 16 16 Most Carried 22 | 7 8 16 18 22 8 8 8 10 10 10 10 16 16 16 16 16 16 16 16 16 16 16 16 16 Average Carried 13 | 4 6 13 15 13 7 7 7 8 8 9 8 15 15 16 13 16 15 15 16 14 15 15 15 14 Final Capacity 18 | 8 16 16 18 8 8 8 8 10 10 10 10 16 16 16 16 16 16 16 16 16 16 16 16 16 Final Carried 18 | 7 7 16 18 8 8 8 8 10 9 10 10 16 16 16 16 16 16 16 16 16 16 16 15 13 Class Distribution -------------------- 33% | Hacker-Scout 24% | Mutant 14% | Scavenger-Mutant 14% | Hacker-Mutant 3% | Skirmisher Dominant Class ---------------- Mutant | -10/Materials Mutant | -9/Materials Scavenger-Mutant | -8/Materials Skirmisher | -7/Factory Hacker-Mutant | -6/Factory Hacker-Mutant | -6/Waste Hacker-Scout | -6/Factory Hacker-Scout | -5/Factory Hacker-Scout | -5/Waste Hacker-Scout | -5/Factory Hacker-Scout | -5/Extension Hacker-Mutant | -5/Cetus Scavenger-Mutant | -5/Archives Hacker-Mutant | -5/Hub_04(d) Hacker-Scout | -4/Factory Hacker-Scout | -4/Waste Hacker-Scout | -4/Factory Hacker-Scout | -4/Upper Caves Hacker-Scout | -4/Upper Caves Hacker-Sprinter | -3/Research Hacker-Scout | -3/Quarantine Hacker-Assassin | -2/Research Wizard-Scout | -2/Testing Hacker-Scout | -1/Access Resources | -11 -10 -9 -8 -7 -6 -6 -6 -5 -5 -5 -5 -5 -5 -5 -4 -4 -4 -4 -4 -3 -3 -2 -2 -1 ----------- Run | Scr Mat Mat Mat Fac Fac Was Fac Fac Was Fac Ext Cet Arc Hub Fac Was Fac Upp Upp Res Qua Res Tes Acc Matter Collected 4411 | 192 . 364 478 270 315 294 330 . 215 . 294 449 206 60 17 . . 110 . 27 36 139 31 584 Remotely . | . . . . . . . . . . . . . . . . . . . . . . . . . Salvage Created 8037 | 153 45 1337 1652 319 486 . 68 . 76 201 440 1148 691 29 17 . 34 56 . 27 36 139 26 1057 Parts 365 | 12 2 83 94 19 9 . 1 . . 5 20 45 16 2 1 . 3 1 . 1 3 5 3 40 Haulers Intercepted 11 | . . 4 3 . . . 1 . . . . . . . . . . . . . . . . 3 Recyclers Shooed 1 | 1 . . . . . . . . . . . . . . . . . . . . . . . . Parts Field Recycled . | . . . . . . . . . . . . . . . . . . . . . . . . . Retrieved Matter . | . . . . . . . . . . . . . . . . . . . . . . . . . Parts Self-Destructed . | . . . . . . . . . . . . . . . . . . . . . . . . . Prevented . | . . . . . . . . . . . . . . . . . . . . . . . . . Kills | -11 -10 -9 -8 -7 -6 -6 -6 -5 -5 -5 -5 -5 -5 -5 -4 -4 -4 -4 -4 -3 -3 -2 -2 -1 ------- Run | Scr Mat Mat Mat Fac Fac Was Fac Fac Was Fac Ext Cet Arc Hub Fac Was Fac Upp Upp Res Qua Res Tes Acc Combat Hostiles Destroyed 100 | . 1 24 30 3 2 . . . . 1 5 23 4 . . . . . . . . . . 7 Melee 1 | . . . . . . . . . . 1 . . . . . . . . . . . . . . Guns 30 | . 1 17 11 . . . . . . . . 1 . . . . . . . . . . . . Cannons 40 | . . 4 14 2 2 . . . . . 5 4 2 . . . . . . . . . . 7 AOE 17 | . . 3 3 1 . . . . . . . 10 . . . . . . . . . . . . Classes Destroyed 16 | 2 1 6 3 1 . . . . . . 1 . . . . . . 1 . . . . . 1 Worker 12 | . . . 4 2 1 . . . . . . . . 1 . . . . . . . 1 2 1 Builder 1 | . . 1 . . . . . . . . . . . . . . . . . . . . . . Tunneler 5 | 3 . . . . . . . . . . . . . . 1 . . . . . . . . 1 Hauler 11 | . . 4 3 . . . 1 . . . . . . . . . . . . . . . . 3 Recycler 15 | 1 . 3 . 3 3 . . . . 1 2 . . . . . . . . . . 1 . 1 Mechanic 2 | . . . 1 . . . . . . . . . . . . . . . . . . . . 1 Operator 17 | . . 1 3 . . . 1 . . . 1 . 9 . . . 1 . . 1 . . . . Watcher 14 | . . 4 4 2 . . . . . . 1 2 . . . . . . . . 1 . . . Swarmer 36 | . . 12 10 . . . . . . . 3 11 . . . . . . . . . . . . Grunt 21 | . 1 4 13 . . . . . . . 1 2 . . . . . . . . . . . . Brawler 3 | . . . 2 . . . . . . . . 1 . . . . . . . . . . . . Sentry 19 | . . 8 5 1 1 . . . . . . . 4 . . . . . . . . . . . Hunter 4 | . . . . . . . . . . . . . . . . . . . . . . . . 4 Programmer 9 | . . . . 2 1 . . . . 1 . 2 . . . . . . . . . . . 3 Behemoth 1 | . . . . . . . . . . . 1 . . . . . . . . . . . . . Cetus Guard 7 | . . . . . . . . . . . . 7 . . . . . . . . . . . . Decomposer 1 | . . . . . . . . . . . . . . . . . . 1 . . . . . . Samaritan 1 | . . . . . . . . . . . . . . . . . . 1 . . . . . . Best Kill Streak 8 | 4 1 4 6 3 3 . 1 . . 2 3 8 6 1 1 . 1 . . 1 1 1 2 5 Combat Bots Only 7 | . 1 4 4 1 1 . . . . 1 3 7 2 . . . . . . . . . . 5 Max Kills in Single Turn 3 | 1 1 2 2 1 1 . 1 . . 1 2 3 1 1 1 . 1 1 . 1 1 1 1 3 Gunslinging . | . . . . . . . . . . . . . . . . . . . . . . . . . Exploded 3 | . . 2 1 1 . . . . . . . 3 . . . . . . . . . . . . Melee 1 | . . . . . . . . . . 1 . . . . . . . . . . . . . . Uniques/NPCs Destroyed . | . . . . . . . . . . . . . . . . . . . . . . . . . Combat | -11 -10 -9 -8 -7 -6 -6 -6 -5 -5 -5 -5 -5 -5 -5 -4 -4 -4 -4 -4 -3 -3 -2 -2 -1 -------- Run | Scr Mat Mat Mat Fac Fac Was Fac Fac Was Fac Ext Cet Arc Hub Fac Was Fac Upp Upp Res Qua Res Tes Acc Damage Taken 7620 | . 55 1085 2291 267 432 . 18 . 58 53 542 297 438 128 20 . . . 149 41 110 73 117 1446 Core 1203 | . 32 198 288 69 103 . 2 . . 28 129 19 . . . . . . . 41 18 28 . 248 Absorbed by Shields 324 | . . . . . . . . . . . 50 244 . . . . . . . . . . . 30 Reduced by Siege Mode 45 | . . . . . . . . . . . . 7 38 . . . . . . . . . . . Core Remaining (%) 83 | 100 87 50 47 90 . . 87 . . . . . . 82 . . . . 100 . 95 . 98 84 Volleys Fired 354 | 8 8 111 108 18 11 . 13 . 1 . 17 25 27 . . . . . . . . . . 7 Largest 2 | 1 2 2 2 2 2 . 2 . 1 . 2 2 2 . . . . . . . . . . 1 Hottest 113 | 40 90 101 113 88 88 . 88 . 20 . 105 93 93 . . . . . . . . . . 100 Shots Fired 601 | 8 15 168 204 36 23 1 26 . 1 . 33 44 35 . . . . . . . . . . 7 Gun 252 | 8 15 119 108 . . . . . . . . 2 . . . . . . . . . . . . Cannon 267 | . . 23 85 36 23 1 26 . . . 33 23 10 . . . . . . . . . . 7 Launcher 56 | . . . 11 . . . . . 1 . . 19 25 . . . . . . . . . . . Special 26 | . . 26 . . . . . . . . . . . . . . . . . . . . . . Kinetic 236 | . . 11 64 36 23 1 26 . . . 33 25 10 . . . . . . . . . . 7 Thermal 83 | . 7 46 30 . . . . . . . . . . . . . . . . . . . . . Explosive 1 | . . . . . . . . . 1 . . . . . . . . . . . . . . . Electromagnetic 281 | 8 8 111 110 . . . . . . . . 19 25 . . . . . . . . . . . Robot Hit Streak 17 | 5 6 17 13 14 4 2 8 . . . 8 12 8 . . . . . . . . . . 7 Robot Miss Streak 9 | 1 4 4 3 2 2 . 2 . . . 3 3 2 . . . . . . . . . . 9 Penetration Max 1 | . . . . . . . . . . . . 1 . . . . . . . . . . . 1 Secondary Targets . | . . . . . . . . . . . . . . . . . . . . . . . . . Shots Hit Robots 421 | 6 6 105 139 27 16 1 14 . . 4 25 25 12 1 3 . 4 2 . 1 1 2 6 21 Core Hits 258 | 4 1 54 69 15 3 1 4 . 6 3 11 34 18 1 1 . 2 2 . 1 1 2 1 24 Critical Hits 31 | . . . 5 1 . . 1 . . . 4 4 2 . . . . 1 . . 1 . . 12 Critical Kills 17 | . . . 2 . . . . . . . 1 2 2 . . . . 1 . . 1 . . 8 Critical Parts Destroyed 14 | . . . 3 1 . . 1 . . . 3 2 . . . . . . . . . . . 4 Melee Attacks 318 | . . . . 10 24 . 11 4 . 9 10 15 . 3 29 . 14 7 7 15 25 13 25 97 Impact 45 | . . . . 10 24 . 11 . . . . . . . . . . . . . . . . . Slashing . | . . . . . . . . . . . . . . . . . . . . . . . . . Piercing 273 | . . . . . . . . 4 . 9 10 15 . 3 29 . 14 7 7 15 25 13 25 97 Sneak Attacks 31 | . . . . . 4 . . . . 2 3 . . 1 1 . 1 2 . 1 1 2 6 7 Combat Hostiles . | . . . . . . . . . . . . . . . . . . . . . . . . . Follow-up Attacks 3 | . . . . . . . . . . . . . . . . . . . . . . . 2 1 Damage Inflicted 17028 | 119 65 1969 3391 822 696 27 365 . 524 227 1236 2525 1372 110 179 . 244 185 . 128 113 354 780 1597 Guns 2447 | 85 65 968 1303 . . . . . . . . 26 . . . . . . . . . . . . Cannons 4668 | . . 333 1304 642 347 27 365 . . . 739 600 210 . . . . . . . . . . 101 Explosions 5101 | 34 . 518 784 180 . . . . 524 . . 1899 1162 . . . . . . . . . . . Melee 4649 | . . . . . 336 . . . . 227 497 . . 110 179 . 244 185 . 128 113 354 780 1496 Ramming 13 | . . . . . 13 . . . . . . . . . . . . . . . . . . . Kinetic 3851 | . . 60 734 642 347 27 365 . . . 739 626 210 . . . . . . . . . . 101 Thermal 1802 | 34 26 593 766 . . . . . . . . 383 . . . . . . . . . . . . Explosive 930 | . . 226 . 180 . . . . 524 . . . . . . . . . . . . . . . Electromagnetic 5783 | 85 39 1090 1891 . . . . . . . . 1516 1162 . . . . . . . . . . . Impact 336 | . . . . . 336 . . . . . . . . . . . . . . . . . . . Slashing . | . . . . . . . . . . . . . . . . . . . . . . . . . Piercing 4313 | . . . . . . . . . . 227 497 . . 110 179 . 244 185 . 128 113 354 780 1496 Highest Corruption 19 | . . . . 4 19 19 19 . . . . 6 8 8 . 9 9 9 10 . . . . 5 Average Corruption 10 | . . . . 2 16 19 19 . . . . 5 7 8 . 9 9 9 9 . . . . 3 Corruption Purged . | . . . . . . . . . . . . . . . . . . . . . . . . . Effects 180 | . . . . 9 33 14 57 . . . . 15 18 2 . 2 11 10 7 . . . . 2 Message Errors 41 | . . . . 2 6 2 13 . . . . 3 6 1 . . 6 2 . . . . . . Matter Fused 29 | . . . . 1 4 1 10 . . . . 1 5 1 . . 2 2 2 . . . . . Heat Flow Errors 14 | . . . . 2 5 1 1 . . . . 2 1 . . . . 2 . . . . . . Energy Discharges 15 | . . . . 2 1 1 . . . . . 3 1 . . 2 1 2 2 . . . . . Parts Rejected 1 | . . . . . . . . . . . . 1 . . . . . . . . . . . . Data Loss (minor) 11 | . . . . 1 1 1 2 . . . . . 2 . . . 1 2 . . . . . 1 Data Loss (major) 4 | . . . . . . . 2 . . . . . . . . . 1 . 1 . . . . . Misfires 3 | . . . . . 1 1 . . . . . 1 . . . . . . . . . . . . Alerts 1 | . . . . . . . 1 . . . . . . . . . . . . . . . . . Misdirections 42 | . . . . . 10 6 25 . . . . . . . . . . . 1 . . . . . Targeting Errors 16 | . . . . 1 5 1 3 . . . . 3 1 . . . . . 1 . . . . 1 Weapon Failures 3 | . . . . . . . . . . . . 1 2 . . . . . . . . . . . Overload Shots . | . . . . . . . . . . . . . . . . . . . . . . . . . Overflow Damage 1540 | . . 100 40 19 227 . 16 . 49 47 3 26 39 . 84 . 112 . . . . . 389 389 Projectiles 87 | . . 16 18 4 21 . 16 . . . 3 9 . . . . . . . . . . . . Explosions 226 | . . 84 22 15 . . . . 49 . . 17 39 . . . . . . . . . . . Melee 1227 | . . . . . 206 . . . . 47 . . . . 84 . 112 . . . . . 389 389 Knockbacks 27 | . . . 7 7 6 1 3 . . . 1 1 . . . . . . . . . . . 1 Impact 4 | . . . . . 4 . . . . . . . . . . . . . . . . . . . Kinetic 22 | . . . 6 7 2 1 3 . . . 1 1 . . . . . . . . . . . 1 Secondary 1 | . . . 1 . . . . . . . . . . . . . . . . . . . . . Self-Inflicted Damage 418 | . . 134 57 56 6 . . . 58 . . 64 43 . . . . . . . . . . . Shots 14 | . . 5 2 1 . . . . 1 . . 3 2 . . . . . . . . . . . Rammed 1 | . . . . . 1 . . . . . . . . . . . . . . . . . . . Targets Rammed 1 | . . . . . 1 . . . . . . . . . . . . . . . . . . . Kicked . | . . . . . . . . . . . . . . . . . . . . . . . . . Crushed . | . . . . . . . . . . . . . . . . . . . . . . . . . Highest Temperature 305 | . 214 188 305 237 268 277 177 . . . 305 223 240 . . . . 216 2 1 . . . 108 Average Temperature 69 | . 109 58 69 40 69 128 62 . . . 115 64 80 . . . . 105 1 1 . . . 48 Received Heat Transfer 1513 | . 30 225 990 24 18 . . . . 9 51 16 9 54 . . . . 24 9 . 9 18 27 Effects 1 | . . . . . . . . . . . 1 . . . . . . . . . . . . . Energy Bleed 1 | . . . . . . . . . . . 1 . . . . . . . . . . . . . Siege Activations 6 | . . . . . . . . . . . . 3 3 . . . . . . . . . . . Total Turns 71 | . . . . . . . . . . . . 23 48 . . . . . . . . . . . Longest Duration 37 | . . . . . . . . . . . . 12 37 . . . . . . . . . . . Robots Corrupted 17 | . . . 2 . . . . . . . . 8 7 . . . . . . . . . . . Combat Hostiles 12 | . . . 2 . . . . . . . . 8 2 . . . . . . . . . . . Parts Fried 66 | . . 6 17 . 8 . . . . . . 11 24 . . . . . . . . . . . Impact Corruptions 7 | . . . . . 7 . . . . . . . . . . . . . . . . . . . Robots Melted . | . . . . . . . . . . . . . . . . . . . . . . . . . Combat Hostiles . | . . . . . . . . . . . . . . . . . . . . . . . . . Parts Melted 3 | . . 3 . . . . . . . . . . . . . . . . . . . . . . Heat Transferred 2815 | . 74 1190 1151 . . . . . . . . 400 . . . . . . . . . . . . Parts Sabotaged . | . . . . . . . . . . . . . . . . . . . . . . . . . Parts Stolen . | . . . . . . . . . . . . . . . . . . . . . . . . . Parts Stripped . | . . . . . . . . . . . . . . . . . . . . . . . . . Power Chain Reactions 21 | 1 . 5 8 . . . . . . . . 5 2 . . . . . . . . . . . Missiles Intercepted . | . . . . . . . . . . . . . . . . . . . . . . . . . Alert | -11 -10 -9 -8 -7 -6 -6 -6 -5 -5 -5 -5 -5 -5 -5 -4 -4 -4 -4 -4 -3 -3 -2 -2 -1 ------- Run | Scr Mat Mat Mat Fac Fac Was Fac Fac Was Fac Ext Cet Arc Hub Fac Was Fac Upp Upp Res Qua Res Tes Acc Peak Influence 1030 | 20 33 228 496 312 204 24 1030 521 228 539 1011 903 488 109 442 169 203 . . 156 205 70 181 213 Average Influence 226 | 5 14 77 252 192 114 24 399 508 214 344 551 621 431 101 120 161 145 . . 96 140 30 106 106 Maximum Alert Level 3 | . . 1 2 1 1 . 3 2 1 2 3 3 2 . 2 . 1 . . . 1 . . 1 Low Security (%) 61 | 100 100 94 29 48 96 100 44 . 25 36 . . . 100 89 100 96 . . 100 97 100 100 98 Level 1 17 | . . 5 61 51 3 . 5 . 74 7 15 5 33 . . . 3 . . . 2 . . 1 Level 2 17 | . . . 8 . . . 34 100 . 55 73 67 66 . 10 . . . . . . . . . Level 3 3 | . . . . . . . 14 . . . 11 27 . . . . . . . . . . . . Level 4 . | . . . . . . . . . . . . . . . . . . . . . . . . . Level 5 . | . . . . . . . . . . . . . . . . . . . . . . . . . High Security . | . . . . . . . . . . . . . . . . . . . . . . . . . Max Security . | . . . . . . . . . . . . . . . . . . . . . . . . . Squads Dispatched 33 | . 1 2 2 1 2 . 9 2 . . 2 . . 1 . . . . . 1 2 1 4 3 Investigation 10 | . 1 1 1 . . . 2 1 . . 1 . . 1 . . . . . . 1 . . 1 Extermination 8 | . . . . 1 2 . 1 1 . . . . . . . . . . . . 1 1 . 1 Reinforcement 9 | . . 1 1 . . . 2 . . . . . . . . . . . . 1 . . 3 1 Assault 3 | . . . . . . . 1 . . . 1 . . . . . . . . . . . 1 . Garrison 3 | . . . . . . . 3 . . . . . . . . . . . . . . . . . Intercept . | . . . . . . . . . . . . . . . . . . . . . . . . . Construction Impeded 1 | . . . . . . . 1 . . . . . . . . . . . . . . . . . Haulers Reinforced . | . . . . . . . . . . . . . . . . . . . . . . . . . Stealth | -11 -10 -9 -8 -7 -6 -6 -6 -5 -5 -5 -5 -5 -5 -5 -4 -4 -4 -4 -4 -3 -3 -2 -2 -1 --------- Run | Scr Mat Mat Mat Fac Fac Was Fac Fac Was Fac Ext Cet Arc Hub Fac Was Fac Upp Upp Res Qua Res Tes Acc Distress Signals 24 | . . 1 7 1 . . . 1 . 2 1 2 1 . . . . . . . 1 . 1 6 Communications Jammed . | . . . . . . . . . . . . . . . . . . . . . . . . . Distress Signals . | . . . . . . . . . . . . . . . . . . . . . . . . . Times Spotted 320 | . 4 45 59 9 6 . 17 2 1 4 22 29 23 8 4 6 4 . 17 2 6 4 11 37 Peak Tracking Total 12 | . 2 4 6 2 2 . 6 1 1 2 6 5 2 9 1 6 3 . 10 1 5 4 8 12 Tactical Retreats 27 | . . 1 7 1 . . . . . . 1 3 . . 1 . . . 2 . . . 2 9 Traps | -11 -10 -9 -8 -7 -6 -6 -6 -5 -5 -5 -5 -5 -5 -5 -4 -4 -4 -4 -4 -3 -3 -2 -2 -1 ------- Run | Scr Mat Mat Mat Fac Fac Was Fac Fac Was Fac Ext Cet Arc Hub Fac Was Fac Upp Upp Res Qua Res Tes Acc Traps Triggered 14 | . 1 1 4 1 1 . . 1 . . 1 . . . 1 . 1 . . . . . . 2 Indirectly . | . . . . . . . . . . . . . . . . . . . . . . . . . Trap Hack Attempts . | . . . . . . . . . . . . . . . . . . . . . . . . . Triggered . | . . . . . . . . . . . . . . . . . . . . . . . . . Disarmed . | . . . . . . . . . . . . . . . . . . . . . . . . . Reprogrammed 6 | . . . . . . . . . . . 6 . . . . . . . . . . . . . Reused . | . . . . . . . . . . . . . . . . . . . . . . . . . Traps Extracted . | . . . . . . . . . . . . . . . . . . . . . . . . . Installed . | . . . . . . . . . . . . . . . . . . . . . . . . . Triggered . | . . . . . . . . . . . . . . . . . . . . . . . . . Machines | -11 -10 -9 -8 -7 -6 -6 -6 -5 -5 -5 -5 -5 -5 -5 -4 -4 -4 -4 -4 -3 -3 -2 -2 -1 ---------- Run | Scr Mat Mat Mat Fac Fac Was Fac Fac Was Fac Ext Cet Arc Hub Fac Was Fac Upp Upp Res Qua Res Tes Acc Machines Disabled 44 | . . 6 4 6 1 . 2 . . 2 3 6 3 . . . . 1 . . 5 . 4 1 Max in Single Turn 4 | . . 4 1 3 1 . 1 . . . 1 1 1 . . . . 1 . . 1 . 1 1 Garrison Access 4 | . . . . . 2 . . . . . . . . . . . . . . . . . . 2 Machines Sabotaged . | . . . . . . . . . . . . . . . . . . . . . . . . . Garrisons Compromised . | . . . . . . . . . . . . . . . . . . . . . . . . . Overloaded Fab Kills . | . . . . . . . . . . . . . . . . . . . . . . . . . Fab Network Shutdowns 1 | . . . . . . . . . . . . . . . 1 . . . . . . . . . Hacking | -11 -10 -9 -8 -7 -6 -6 -6 -5 -5 -5 -5 -5 -5 -5 -4 -4 -4 -4 -4 -3 -3 -2 -2 -1 --------- Run | Scr Mat Mat Mat Fac Fac Was Fac Fac Was Fac Ext Cet Arc Hub Fac Was Fac Upp Upp Res Qua Res Tes Acc Machines Accessed 119 | . 2 10 8 5 7 . 11 3 . 3 12 5 . 1 5 . 8 1 . 5 10 3 7 13 Terminals 79 | . 2 9 6 1 1 . 5 1 . 1 12 5 . 1 3 . 6 . . 4 8 1 6 7 Fabricators 15 | . . . . 2 3 . 2 2 . 1 . . . . 1 . 1 . . . . 1 . 2 Repair Stations 10 | . . . 1 1 . . 1 . . 1 . . . . 1 . 1 . . 1 1 1 . 1 Recycling Units 2 | . . . . . . . 1 . . . . . . . . . . . . . . . . 1 Scanalyzers 7 | . . 1 1 1 1 . 1 . . . . . . . . . . . . . 1 . 1 . Garrison Access 5 | . . . . . 2 . 1 . . . . . . . . . . . . . . . . 2 Total Hacks 399 | . 4 33 17 15 21 . 39 13 . 8 64 15 . 4 15 . 32 1 . 16 35 14 24 29 Successful 245 | . 2 26 8 8 11 . 20 9 . 2 43 11 . 1 11 . 18 1 . 5 21 10 20 18 Failed 153 | . 2 7 9 7 10 . 19 4 . 6 20 4 . 3 4 . 14 . . 11 14 4 4 11 Catastrophic 26 | . . . 2 2 2 . 8 . . . 2 . . . 2 . 3 . . 1 1 2 1 . Database Lockouts 1 | . . . . . . . . . . . 1 . . . . . . . . . . . . . Manual 249 | . 4 27 13 5 5 . 27 7 . 3 37 14 2 4 9 . 27 . . 12 22 7 13 11 Terminals 295 | . 4 31 13 5 3 . 21 7 . 3 64 15 . 4 10 . 28 . . 13 29 8 21 16 Fabricators 38 | . . . . 3 8 . 5 6 . 3 . . . . 3 . 2 . . . . 4 . 4 Repair Stations 26 | . . . 2 3 . . 2 . . 2 . . . . 2 . 2 . . 3 4 2 . 4 Recycling Units 2 | . . . . . . . 1 . . . . . . . . . . . . . . . . 1 Scanalyzers 22 | . . 2 2 4 4 . 5 . . . . . . . . . . . . . 2 . 3 . Garrison Access 15 | . . . . . 6 . 5 . . . . . . . . . . . . . . . . 4 Terminal Hacks 92 | . . 7 . . . . 3 3 . 1 28 7 . . 2 . 7 1 . 2 11 3 12 5 Record 12 | . . . . . . . . . . . 2 4 . . 1 . 1 1 . . 2 . 1 . Part Schematic 21 | . . 1 . . . . 1 2 . . 9 1 . . . . 1 . . 1 . . 5 . Robot Schematic 1 | . . . . . . . . . . . . . . . . . . . . . 1 . . . Prototype ID Bank 7 | . . 1 . . . . . . . . 2 . . . . . 1 . . . 2 . 1 . Open Door 13 | . . . . . . . . . . . 6 1 . . . . . . . . 1 . 1 4 Level Access Points 5 | . . . . . . . 1 . . . . . . . . . 1 . . . 1 . 1 1 Branch Access Points 2 | . . . . . . . . . . . 1 . . . . . 1 . . . . . . . Terminal Index 11 | . . 1 . . . . 1 1 . 1 . 1 . . 1 . 1 . . 1 1 1 1 . Fabricator Index 1 | . . . . . . . . . . . . . . . . . 1 . . . . . . . Recycling Unit Index 1 | . . . . . . . . . . . . . . . . . . . . . . 1 . . Scanalyzer Index 1 | . . 1 . . . . . . . . . . . . . . . . . . . . . . Unreport Threat 4 | . . 1 . . . . . . . . 3 . . . . . . . . . . . . . Reprogram Traps 1 | . . . . . . . . . . . 1 . . . . . . . . . . . . . Reinforcement Status 1 | . . . . . . . . . . . 1 . . . . . . . . . . . . . Recall Investigation 2 | . . . . . . . . . . . 1 . . . . . . . . . 1 . . . Recall Extermination 1 | . . . . . . . . . . . . . . . . . . . . . 1 . . . Recall Reinforcements 3 | . . 1 . . . . . . . . 1 . . . . . . . . . . . 1 . Registered Components 2 | . . 1 . . . . . . . . 1 . . . . . . . . . . . . . Zone Layout 2 | . . . . . . . . . . . . . . . . . . . . . 1 1 . . Protovariant Controls 1 | . . . . . . . . . . . . . . . . . . . . . . . 1 . Fabricator Hacks 24 | . . . . . 6 . 2 5 . . . . . . 3 . 2 . . . . 3 . 3 Network Status 2 | . . . . . . . 1 1 . . . . . . . . . . . . . . . . Load Schematic 12 | . . . . . 3 . 1 2 . . . . . . 1 . 1 . . . . 2 . 2 Build 10 | . . . . . 3 . . 2 . . . . . . 2 . 1 . . . . 1 . 1 Repair Station Hacks 16 | . . . 1 2 . . 2 . . . . . . . 2 . 1 . . 1 2 2 . 3 Scan Component 10 | . . . 1 1 . . 1 . . . . . . . 1 . 1 . . 1 1 1 . 2 Repair 6 | . . . . 1 . . 1 . . . . . . . 1 . . . . . 1 1 . 1 Recycling Unit Hacks 1 | . . . . . . . . . . . . . . . . . . . . . . . . 1 Report Inventory 1 | . . . . . . . . . . . . . . . . . . . . . . . . 1 Scanalyzer 17 | . . 2 2 4 2 . 5 . . . . . . . . . . . . . . . 2 . Insert Component 8 | . . 1 1 2 1 . 2 . . . . . . . . . . . . . . . 1 . Analyze 9 | . . 1 1 2 1 . 3 . . . . . . . . . . . . . . . 1 . Garrison Access Hacks 4 | . . . . . 2 . . . . . . . . . . . . . . . . . . 2 Seal Access 4 | . . . . . 2 . . . . . . . . . . . . . . . . . . 2 Unauthorized Hacks 224 | . 6 39 14 7 6 . 21 2 . 2 32 9 . 3 9 . 22 . . 7 20 4 13 8 Terminals 89 | . 2 17 5 2 1 . 6 1 . 1 15 4 . 1 4 . 8 . . 2 8 2 6 4 Track 22 | . . 6 1 . . . 1 . . . 4 3 . . . . 2 . . . 2 1 1 1 Assimilate 7 | . . 3 . . . . 1 . . . . . . . 1 . 1 . . . 1 . . . Botnet 53 | . 1 7 4 1 1 . 3 1 . 1 10 1 . 1 3 . 4 . . 1 5 1 5 3 Disrupt 3 | . . . . . . . . . . . 1 . . . . . 1 . . 1 . . . . Operators 4 | . 1 1 . 1 . . 1 . . . . . . . . . . . . . . . . . Fabricators . | . . . . . . . . . . . . . . . . . . . . . . . . . Repair Stations . | . . . . . . . . . . . . . . . . . . . . . . . . . Recycling Units 1 | . . . . . . . 1 . . . . . . . . . . . . . . . . . Tunnel 1 | . . . . . . . 1 . . . . . . . . . . . . . . . . . Scanalyzers . | . . . . . . . . . . . . . . . . . . . . . . . . . Garrison Access 1 | . . . . . . . 1 . . . . . . . . . . . . . . . . . Redirect 1 | . . . . . . . 1 . . . . . . . . . . . . . . . . . Data Cores Recovered 5 | . . . . . . . 2 . . . 2 . . . . . 1 . . . . . . . Used 2 | . . . . . . . 1 . . . 1 . . . . . . . . . . . . . Hacking Detections 100 | . 2 9 8 5 6 . 9 3 . 3 10 3 . 1 3 . 7 . . 5 8 2 5 11 Full Trace Events 3 | . . . . . . . . 1 . . . . . 1 . . . . . . . . . 1 Feedback Events 1 | . . . . . . . . 1 . . . . . . . . . . . . . . . . Hackware Fried 1 | . . . . . . . . 1 . . . . . . . . . . . . . . . . Feedback Blocked . | . . . . . . . . . . . . . . . . . . . . . . . . . Robot Schematics Acquired 1 | . . . . . . . . . . . . . . . . . . . . . 1 . . . Robots Built . | . . . . . . . . . . . . . . . . . . . . . . . . . Matter . | . . . . . . . . . . . . . . . . . . . . . . . . . Time . | . . . . . . . . . . . . . . . . . . . . . . . . . Total Robot Build Rating . | . . . . . . . . . . . . . . . . . . . . . . . . . Part Schematics Acquired 29 | . . 2 1 2 1 . 3 2 . . 9 1 . . . . 1 . . 1 . . 6 . Parts Built 13 | . . . . . 4 . . 3 . . . . . . 2 . 2 . . . . 1 . 1 Matter 2269 | . . . . . 716 . . 314 . . . . . . 424 . 212 . . . . 318 . 285 Time 690 | . . . . . 188 . . 78 . . . . . . 212 . 106 . . . . 56 . 50 Total Part Build Rating 64 | . . . . . 16 . . 13 . . . . . . 12 . 12 . . . . 6 . 5 Parts Repaired 6 | . . . . 1 . . 1 . . . . . . . 1 . . . . . 1 1 . 1 Time 224 | . . . . 13 . . 62 . . . . . . . 56 . . . . . 19 56 . 18 Parts Recycled . | . . . . . . . . . . . . . . . . . . . . . . . . . Recycled Matter . | . . . . . . . . . . . . . . . . . . . . . . . . . Retrieved Matter . | . . . . . . . . . . . . . . . . . . . . . . . . . Retrieved Components . | . . . . . . . . . . . . . . . . . . . . . . . . . Parts Scanalyzed 8 | . . 1 1 2 1 . 2 . . . . . . . . . . . . . . . 1 . Part Schematics Acquired 8 | . . 1 1 2 1 . 2 . . . . . . . . . . . . . . . 1 . Parts Damaged . | . . . . . . . . . . . . . . . . . . . . . . . . . Bothacking | -11 -10 -9 -8 -7 -6 -6 -6 -5 -5 -5 -5 -5 -5 -5 -4 -4 -4 -4 -4 -3 -3 -2 -2 -1 ------------ Run | Scr Mat Mat Mat Fac Fac Was Fac Fac Was Fac Ext Cet Arc Hub Fac Was Fac Upp Upp Res Qua Res Tes Acc Used RIF Installer . | . . . . . . . . . . . . . . . . . . . . . . . . . Robots Hacked . | . . . . . . . . . . . . . . . . . . . . . . . . . Non-combat . | . . . . . . . . . . . . . . . . . . . . . . . . . Combat . | . . . . . . . . . . . . . . . . . . . . . . . . . Robot Hacks Applied . | . . . . . . . . . . . . . . . . . . . . . . . . . Relay Couplers Released . | . . . . . . . . . . . . . . . . . . . . . . . . . Robots Rewired . | . . . . . . . . . . . . . . . . . . . . . . . . . Allies Hacked . | . . . . . . . . . . . . . . . . . . . . . . . . . Hacks Repelled . | . . . . . . . . . . . . . . . . . . . . . . . . . Allies | -11 -10 -9 -8 -7 -6 -6 -6 -5 -5 -5 -5 -5 -5 -5 -4 -4 -4 -4 -4 -3 -3 -2 -2 -1 -------- Run | Scr Mat Mat Mat Fac Fac Was Fac Fac Was Fac Ext Cet Arc Hub Fac Was Fac Upp Upp Res Qua Res Tes Acc Total Allies 53 | . . 2 . . . 20 . . 20 3 6 . . . 1 . . . . . 1 . . . Largest Group 20 | . . 1 . . . 20 20 2 20 20 12 3 1 . 1 . . . . . 1 . . . Highest-Rated Group 764 | . . 10 . . . 744 744 54 764 759 556 207 156 . 26 . . . . . 10 . . . Highest-Rated Ally 156 | . . 10 . . . 46 46 31 50 50 156 156 156 . 26 . . . . . 10 . . . Total Orders 4 | . . 1 . . . . . . . . . . . . 1 . . . . . 1 . . 1 GOTO 3 | . . 1 . . . . . . . . . . . . 1 . . . . . 1 . . . EXPLORE 1 | . . . . . . . . . . . . . . . . . . . . . . . . 1 Ally Attacks 391 | . . . . . . . 186 4 14 43 107 36 1 . . . . . . . . . . . Total Damage 11011 | . . . . . . . 4157 15 419 1829 3742 826 23 . . . . . . . . . . . Kills 76 | . . . . . . . 31 . 1 13 26 5 . . . . . . . . . . . . Allies Corrupted 2 | . . . . . . . 2 . . . . . . . . . . . . . . . . . Allies Melted . | . . . . . . . . . . . . . . . . . . . . . . . . . Intel | -11 -10 -9 -8 -7 -6 -6 -6 -5 -5 -5 -5 -5 -5 -5 -4 -4 -4 -4 -4 -3 -3 -2 -2 -1 ------- Run | Scr Mat Mat Mat Fac Fac Was Fac Fac Was Fac Ext Cet Arc Hub Fac Was Fac Upp Upp Res Qua Res Tes Acc Robot Analysis Total . | . . . . . . . . . . . . . . . . . . . . . . . . . Derelict Logs Recovered 4 | . . . . . . . . . . . . . . . . . . 2 2 . . . . . Drone Launches 6 | . . . . . . . . . . . . . . . . . . . . . . . . 6 Drone Recoveries . | . . . . . . . . . . . . . . . . . . . . . . . . . Exploration | -11 -10 -9 -8 -7 -6 -6 -6 -5 -5 -5 -5 -5 -5 -5 -4 -4 -4 -4 -4 -3 -3 -2 -2 -1 ------------- Run | Scr Mat Mat Mat Fac Fac Was Fac Fac Was Fac Ext Cet Arc Hub Fac Was Fac Upp Upp Res Qua Res Tes Acc Turns Passed 13043 | 79 152 2231 1647 920 895 200 636 310 171 212 687 849 439 120 551 36 298 398 135 165 439 269 240 964 Spaces Moved 12928 | 56 130 1147 686 587 845 288 836 375 229 411 994 445 203 70 809 104 573 746 200 285 619 227 351 1712 Core 14 | 10 . . . 3 . . . . . . . . . . . . . . 1 . . . . . Treads 1487 | . . . 613 183 . . . . . . . 418 203 70 . . . . . . . . . . Legs . | . . . . . . . . . . . . . . . . . . . . . . . . . Wheels 1396 | 46 130 1147 73 . . . . . . . . . . . . . . . . . . . . . Hover 1833 | . . . . 10 290 288 836 375 34 . . . . . . . . . . . . . . . Flight 8198 | . . . . 391 555 . . . 195 411 994 27 . . 809 104 573 746 199 285 619 227 351 1712 Fastest Speed 29 | 50 80 100 100 30 30 62 62 50 31 31 31 34 160 160 34 34 34 34 34 31 31 31 29 29 Average Speed 63 | 80 89 101 172 115 70 62 62 52 36 31 37 152 160 160 34 34 34 34 35 31 31 53 31 29 Slowest Speed 450 | 90 100 130 220 450 109 62 62 62 103 31 109 160 160 160 34 34 34 34 250 31 31 114 114 106 Overloaded Moves . | . . . . . . . . . . . . . . . . . . . . . . . . . Propulsion Burnouts . | . . . . . . . . . . . . . . . . . . . . . . . . . Robots Hopped 9 | . . . . . . . . . . 5 . . . . . . . . . . . 2 1 1 Cave-ins Triggered 3 | . . . . . 2 . . . . . . . 1 . . . . . . . . . . . Exploration Rate (%) 44 | 3 27 76 60 19 26 87 26 9 87 16 90 96 96 13 12 82 15 81 25 10 58 7 40 53 Regions Visited 24 Branch Regions 8 Pre-discovered Areas 2 | . . . . . . . 1 . . . . . . . . . . 1 . . . . . . Known Exits Taken 14 | . . . . 1 . . 1 . . 1 1 1 1 1 . . 1 1 1 1 1 1 1 . Unknown Exits Taken 4 | 1 1 1 1 . . . . . . . . . . . . . . . . . . . . . Scrap Searched 3 | . . . . . . . . . . . . . . . . . . 2 1 . . . . . Spaces Dug 239 | . . 9 . 4 15 . 7 4 49 4 1 . . 2 25 . 6 4 6 13 13 7 9 61 Terrain Destroyed 530 | 6 . 135 34 67 16 . 7 4 49 4 5 49 8 2 25 . 6 4 6 13 13 7 9 61 Melee 180 | . . . . 4 15 . 6 4 . 4 1 . . 2 25 . 6 4 6 13 13 7 9 61 Projectile 31 | . . 10 7 . 1 . 1 . . . 4 4 4 . . . . . . . . . . . AOE 319 | 6 . 125 27 63 . . . . 49 . . 45 4 . . . . . . . . . . . Actions | -11 -10 -9 -8 -7 -6 -6 -6 -5 -5 -5 -5 -5 -5 -5 -4 -4 -4 -4 -4 -3 -3 -2 -2 -1 --------- Run | Scr Mat Mat Mat Fac Fac Was Fac Fac Was Fac Ext Cet Arc Hub Fac Was Fac Upp Upp Res Qua Res Tes Acc Total 16619 | 82 150 2010 946 777 1077 310 913 486 317 478 1258 550 281 73 1042 103 658 880 253 337 835 354 448 2001 Wait 2277 | . 3 690 75 104 116 15 18 79 66 54 201 24 47 . 182 . 39 121 46 19 132 113 39 94 Move 12886 | 55 129 1146 685 586 843 287 835 375 228 400 993 444 202 69 809 103 572 745 199 284 618 222 348 1709 Hop 9 | . . . . . . . . . . 5 . . . . . . . . . . . 2 1 1 Pick Up 290 | 13 4 27 35 19 26 3 15 13 7 5 6 16 2 . 9 . 15 3 . 6 25 3 13 25 Fast Attach . | . . . . . . . . . . . . . . . . . . . . . . . . . Attach 133 | 5 2 9 19 9 14 1 . 3 6 1 3 6 1 . 6 . 2 2 . 5 10 3 10 16 Detach 12 | . . . . . 3 . . . . . 1 . . . . . . . . . 1 1 2 4 Swap 126 | . 2 18 10 10 18 1 9 4 2 . 8 10 1 1 3 . 4 . 1 5 4 . 5 10 Drop 192 | 1 2 9 14 21 19 3 12 8 7 4 4 10 1 . 4 . 12 2 . 3 24 1 12 19 Fire 354 | 8 8 111 108 18 11 . 13 . 1 . 17 25 27 . . . . . . . . . . 7 Melee 292 | . . . . 10 24 . 11 4 . 9 10 15 . 3 29 . 14 7 7 15 21 9 18 86 Ram 1 | . . . . . 1 . . . . . . . . . . . . . . . . . . . Kick . | . . . . . . . . . . . . . . . . . . . . . . . . . Crush . | . . . . . . . . . . . . . . . . . . . . . . . . . Escape Stasis 47 | . . . . . 2 . . . . . 15 . . . . . . . . . . . . 30 Rewire . | . . . . . . . . . . . . . . . . . . . . . . . . . Trap . | . . . . . . . . . . . . . . . . . . . . . . . . . Miscellaneous . | . . . . . . . . . . . . . . . . . . . . . . . . . Route ------- -11/Scrapyard -10/Materials (discovered 2 exits: *Mat / [*Min]) -9/Materials (discovered 4 exits: *Mat x2 / [*Min x2]) -8/Materials (discovered 2 exits: *Fac x2) -7/Factory -6/Factory -6/Waste -6/Factory (discovered 4 exits: *Fac x4) -5/Factory -5/Waste -5/Factory -5/Extension (discovered 3 exits: *Fac x2 / *Cet) -5/Cetus (discovered 3 exits: *Fac x2 / *Arc) -5/Archives (discovered 3 exits: *Fac / *Hub x2) -5/Hub_04(d) -4/Factory -4/Waste -4/Factory (discovered 7 exits: Res x4 / *Upp x2 / Arm) -4/Upper Caves -4/Upper Caves -3/Research (discovered 3 exits: Res x2 / *Qua) -3/Quarantine -2/Research -2/Testing -1/Access (discovered 2 exits: *Sur / *Com) Tau Ceti IV Orbit History --------- Turn | Location | Event 2 | -11/Scrapyard | Met Revision 17 6 | -11/Scrapyard | Discovered new exit (range 16) 80 | -11/Scrapyard | Entered Materials 98 | -10/Materials | Discovered new exit (range 8) 228 | -10/Materials | Discovered new exit (range 5) 232 | -10/Materials | Entered another Materials area 232 | -9/Materials | Evolved 2 slots: Utility x2 310 | -9/Materials | Build established: Mutant 516 | -9/Materials | Discovered new exit (range 16) 1022 | -9/Materials | Lost 3 parts (1n2w) 1112 | -9/Materials | Discovered new exit (range 5) 1139 | -9/Materials | Discovered new exit (range 17) 1431 | -9/Materials | Discovered new exit (range 8) 2463 | -9/Materials | Entered another Materials area 2463 | -8/Materials | Evolved 2 slots: Propulsion x1, Utility x1 2893 | -8/Materials | Discovered new exit (range 5) 3137 | -8/Materials | Lost 3 parts (1p2w) 3252 | -8/Materials | Build established: Scavenger-Mutant 3869 | -8/Materials | Discovered new exit (range 4) 4052 | -8/Materials | Core integrity fell below 50% 4110 | -8/Materials | Entered Factory 4110 | -7/Factory | Evolved 2 slots: Utility x2 4252 | -7/Factory | Repaired Lgt. Treads 4982 | -7/Factory | Discovered new exit (range 22) 4991 | -7/Factory | Identified exit to Factory 5030 | -7/Factory | Entered another Factory area 5030 | -6/Factory | Evolved 2 slots: Power x1, Utility x1 5457 | -6/Factory | Crushed by falling debris 5475 | -6/Factory | Crushed by falling debris 5476 | -6/Factory | System corruption reached 10% 5506 | -6/Factory | Lost 4 parts (2n2u) 5764 | -6/Factory | Fabricated Adv. Terrain Scanner? 5793 | -6/Factory | Fabricated Biomechanical Wings? 5876 | -6/Factory | Fabricated Biomechanical Wings (x1) 5925 | -6/Factory | Sucked down chute 5925 | -6/Factory | Entered Waste 5926 | -6/Waste | Joined by Warlord forces that had cleared the area 6068 | -6/Waste | Discovered new exit (range 15) 6109 | -6/Waste | Identified exit to Factory 6125 | -6/Waste | Entered Factory 6125 | -6/Factory | Accompanied by 20 allies 6270 | -6/Factory | Repaired Impulse Thruster 6413 | -6/Factory | Garrison activated, responded to threat 6443 | -6/Factory | Build established: Hacker-Scout 6475 | -6/Factory | First assault squad dispatched 6664 | -6/Factory | Identified exit to Factory 6761 | -6/Factory | Entered another Factory area 6761 | -5/Factory | Accompanied by 2 allies 6761 | -5/Factory | Evolved 2 slots: Propulsion x2 6908 | -5/Factory | Fabricated Lrg. Storage Unit (x1) 7011 | -5/Factory | Adv. Hacking Suite fried by hacking feedback 7064 | -5/Factory | Fabricated Nuclear Pulse Array (x2) 7071 | -5/Factory | Sucked down chute 7071 | -5/Factory | Entered Waste 7072 | -5/Waste | Joined by Warlord forces that had cleared the area 7097 | -5/Waste | Found Prototype Launcher 7098 | -5/Waste | Identified Hellfire Missile Launcher 7102 | -5/Waste | Found Adv. Powered Armor 7105 | -5/Waste | Found Prototype Launcher 7106 | -5/Waste | Identified Tactical Quantum Warhead 7120 | -5/Waste | A Compactor rumbled back to life 7120 | -5/Waste | Spotted C-40 Crusher 7122 | -5/Waste | Allies destroyed C-40 Crusher 7164 | -5/Waste | Discovered new exit (range 12) 7176 | -5/Waste | Identified exit to Factory 7242 | -5/Waste | Entered Factory 7242 | -5/Factory | Accompanied by 20 allies 7386 | -5/Factory | Discovered new exit (range 11) 7393 | -5/Factory | Identified exit to Extension 7454 | -5/Factory | Garrison activated, responded to threat 7454 | -5/Factory | Entered Extension 7454 | -5/Extension | Accompanied by 11 allies 7470 | -5/Extension | Disrupted transfer network 7496 | -5/Extension | Identified exit to Cetus 7497 | -5/Extension | Rescued a captive Derelict 7497 | -5/Extension | Rescued a captive Derelict 7585 | -5/Extension | Rescued A7 7612 | -5/Extension | Rescued a captive Derelict 7754 | -5/Extension | First assault squad dispatched 7883 | -5/Extension | Spotted B-75 Beast 7886 | -5/Extension | Discovered new exit (range 3) 7887 | -5/Extension | Identified exit to Factory 7907 | -5/Extension | Destroyed B-75 Beast 7962 | -5/Extension | Central database locked down 7998 | -5/Extension | Rescued a captive Derelict 8024 | -5/Extension | Rescued a captive Derelict 8045 | -5/Extension | Discovered exit to Factory (range 10) 8141 | -5/Extension | Entered Cetus 8141 | -5/Cetus | Accompanied by 3 allies 8146 | -5/Cetus | Acquired a Cetus Manufacturing Module code from A7 8148 | -5/Cetus | Spotted Cetus Guard 8148 | -5/Cetus | Spotted Cetus Guard 8153 | -5/Cetus | Destroyed Cetus Guard 8153 | -5/Cetus | Spotted Cetus Guard 8153 | -5/Cetus | Spotted Cetus Guard 8156 | -5/Cetus | Destroyed Cetus Guard 8157 | -5/Cetus | Destroyed Cetus Guard 8158 | -5/Cetus | Destroyed Cetus Guard 8280 | -5/Cetus | Escorted A7 to Cetus Mainframe 8391 | -5/Cetus | Failed to start Cetus Manufacturing Module 8421 | -5/Cetus | Build established: Hacker-Mutant 8421 | -5/Cetus | Found a strange terminal 8526 | -5/Cetus | Discovered exit to Factory (range 16) 8664 | -5/Cetus | Discovered new exit (range 15) 8734 | -5/Cetus | Spotted Cetus Guard 8734 | -5/Cetus | Spotted Cetus Guard 8737 | -5/Cetus | Spotted Cetus Guard 8741 | -5/Cetus | Allies destroyed Cetus Guard 8746 | -5/Cetus | Destroyed Cetus Guard 8746 | -5/Cetus | Spotted Cetus Guard 8747 | -5/Cetus | Destroyed Cetus Guard 8750 | -5/Cetus | Destroyed Cetus Guard 8775 | -5/Cetus | Discovered exit to Factory (range 16) 8783 | -5/Cetus | Met Revision 17 8787 | -5/Cetus | Destroyed 7 combat bots 8989 | -5/Cetus | Identified exit to Archives 8990 | -5/Cetus | Entered Archives 8990 | -5/Archives | Accompanied by 1 ally 8995 | -5/Archives | Received a hacking code to weaken MAIN.C 9057 | -5/Archives | Crushed by falling debris 9163 | -5/Archives | Unable to access archive contents 9167 | -5/Archives | Discovered new exit (range 15) 9187 | -5/Archives | Identified exit to Hub_04(d) 9274 | -5/Archives | Discovered exit to Hub_04(d) (range 15) 9319 | -5/Archives | Unable to access archive contents 9350 | -5/Archives | Discovered exit to Factory (range 15) 9357 | -5/Archives | Build established: Scavenger-Mutant 9429 | -5/Archives | Entered Hub_04(d) 9535 | -5/Hub_04(d) | Discovered exit to Factory (range 8) 9549 | -5/Hub_04(d) | Entered Factory 9549 | -4/Factory | Evolved 2 slots: Utility x2 9619 | -4/Factory | Repaired Nuclear Pulse Array 9811 | -4/Factory | Fabricated Adv. Hacking Suite (x1) 9919 | -4/Factory | Fabricated Adv. Hacking Suite? 9926 | -4/Factory | Build established: Hacker-Scout 10044 | -4/Factory | Local fabrication network quarantined 10100 | -4/Factory | Sucked down chute 10100 | -4/Factory | Entered Waste 10109 | -4/Waste | Spotted C-40 Crusher 10109 | -4/Waste | Spotted C-40 Crusher 10111 | -4/Waste | Spotted C-40 Crusher 10111 | -4/Waste | Spotted C-40 Crusher 10115 | -4/Waste | EMP discharged 10119 | -4/Waste | Spotted C-40 Crusher 10120 | -4/Waste | Spotted C-40 Crusher 10131 | -4/Waste | Discovered new exit (range 14) 10135 | -4/Waste | Identified exit to Factory 10136 | -4/Waste | Entered Factory 10184 | -4/Factory | Identified exit to Research 10259 | -4/Factory | Fabricated Mic. Fission Core (x2) 10416 | -4/Factory | Identified exit to Upper Caves 10416 | -4/Factory | Identified exit to Armory 10434 | -4/Factory | Entered Upper Caves 10600 | -4/Upper Caves | Learned 8 Research zone layouts 10784 | -4/Upper Caves | Found Alien Artifact 10785 | -4/Upper Caves | Identified Dimensional Node Initializer 10785 | -4/Upper Caves | Initialized slip node 10812 | -4/Upper Caves | Discovered new exit (range 5) 10813 | -4/Upper Caves | Identified exit to Upper Caves 10832 | -4/Upper Caves | Entered another Upper Caves area 10858 | -4/Upper Caves | Discovered exit to Research (range 10) 10874 | -4/Upper Caves | Learned location of 1 exit from Research 10907 | -4/Upper Caves | Attracted the attention of an 0b10 checkpoint 10927 | -4/Upper Caves | Learned 4 Research zone layouts 10961 | -4/Upper Caves | System corruption reached 10% 10967 | -4/Upper Caves | Entered Research 10967 | -3/Research | Evolved 2 slots: Propulsion x1, Utility x1 10968 | -3/Research | Identified exit to Quarantine 10969 | -3/Research | Identified exit to Research 10978 | -3/Research | Found Prototype Slashing Weapon 10979 | -3/Research | Identified Molecular Scythe 11126 | -3/Research | Spotted B-90 Cyclops 11132 | -3/Research | Entered Quarantine 11138 | -3/Quarantine | Cryocooling Duct disabled 11153 | -3/Quarantine | Ambient heat levels rising (+20) 11153 | -3/Quarantine | Non-combat units ordered to evacuate 11173 | -3/Quarantine | Found Alien Artifact 11176 | -3/Quarantine | Identified Subatomic Replicator 11176 | -3/Quarantine | Used Subatomic Replicator to replicate Lance 11223 | -3/Quarantine | Found Fusion Bomb Launcher 11233 | -3/Quarantine | Found Enh. Force Lance 11257 | -3/Quarantine | Repaired Imp. Propulsion Shielding 11270 | -3/Quarantine | Found Alien Impact Weapon 11272 | -3/Quarantine | Identified Core Stripper 11391 | -3/Quarantine | Met incapacitated Sigix Warrior 11391 | -3/Quarantine | Lockdown squad dispatched 11392 | -3/Quarantine | Acquired the access code to the Sigix quarantine chamber 11392 | -3/Quarantine | Unlocked Sigix quarantine chamber 11444 | -3/Quarantine | Found Alien Artifact 11445 | -3/Quarantine | Identified Matter Drive 11571 | -3/Quarantine | Entered Research 11571 | -2/Research | Evolved 2 slots: Utility x2 11634 | -2/Research | Repaired Field Propulsion Drive 11783 | -2/Research | Fabricated Exp. Cesium-ion Thruster (x1) 11791 | -2/Research | Discovered new exit (range 22) 11840 | -2/Research | Identified exit to Testing 11840 | -2/Research | Entered Testing 11880 | -2/Testing | Found Prototype Energy Cannon 11882 | -2/Testing | Identified Potential Cannon 11900 | -2/Testing | Found Prototype Ballistic Cannon 11901 | -2/Testing | Identified Perforator 11942 | -2/Testing | Found Prototype Hackware 11942 | -2/Testing | Identified Ghost Barrier 11956 | -2/Testing | Identified exit to Access 11956 | -2/Testing | Protovariant out of control (PH-QSZRKNXACN) 11956 | -2/Testing | Unleashed a protovariant (PH-QSZRKNXACN) 11956 | -2/Testing | Spotted PH-QSZRKNXACN 12034 | -2/Testing | Found Med. Regenerative Plating 12080 | -2/Testing | Entered Access 12080 | -1/Access | Evolved 2 slots: Utility x2 12161 | -1/Access | Repaired Nuclear Pulse Array 12230 | -1/Access | Found Prototype Launcher 12231 | -1/Access | Identified Point Singularity Launcher 12322 | -1/Access | Lost 3 parts (3u) 12476 | -1/Access | Spotted B-99 Colossus 12483 | -1/Access | Found Enh. Force Lance 12532 | -1/Access | Discovered new exit (range 11) 12563 | -1/Access | Identified exit to Command 12841 | -1/Access | Fabricated Lgt. Regenerative Plating? 12938 | -1/Access | Identified exit to Surface 13022 | -1/Access | Spotted B-99 Colossus 13044 | *** | Destroyed 0B10! Last Messages --------------- 13023_ Slug penetrates Wall. 13026_ Penetrated by Slug. 13027_ Slug penetrates Wall. 13027_ Penetrated by Slug. 13027_ Slug penetrates H-88 Terminator. 13027_ Penetrated by Slug. 13028_ Slug penetrates Wall. 13028_ Penetrated by Slug. 13028_ Lrn. Terrain Scanner destroyed. 13029_ Slug penetrates Wall. 13030_ Impulse Thruster destroyed. 13030_ Lgt. Regenerative Plating destroyed. 13030_ Penetrated by Slug. 13030_ Lrn. Sensor Array destroyed. 13030_ Slug penetrates Wall. Sealed Barrier opened remotely. 13041_ Connecting with Terminal... 13042_ The Access Shell folds into the floor. [Achievement: Payload Armed] [Achievement: Overachiever] Map ----- +----------------------------------------------------+ | ?????????????????????????????????????????????????? | | ?????????????????????????????????????????????????? | | ?????????????????????????????????????????????????? | | ?????????????????????????????????????????????????? | | ?????????????????????????????????????????????????? | | ?????????????????????????????????????????????????? | | ?????????????????????????????????????????????????? | | ?????????????????????????????????????????????????? | | ?????????????????????????????????????????????????? | | ?????????????????????????????????????????????????? | | ?????????????????????????????????????????????????? | | ?????????????????????????????????????????????????? | | ??????????? ????????????????????????????????? ???? | | ??????????# ????????????????????????? ??? ? ??? ? | | ??????????# ??????????????????????????????? ???"? | | ??????????# ??????????????????????? ?? ????""??? | | ??????????# ?????????????????????????? ????????? | | ??????????# #?????????????#??????#??#?#?? ???""" | | ??????????# #?????###?????#???????????#?? ??????" | | ?????#????# ####### ##########??##????#?? ??????? | | ???#??????# """T""" "????? ??? ??? ?? ? | | ?##?#??#??# A""" """ "?"??????? ?????? ? | | ??????????# ""?? ???? #####+### | | ????????### "????????? | | ????##?#?## "" "??" ? ?? | | ??#?#?#???# k @" ""?????? ??? | | ?#??##?#?## ""?" ??? ? ? ! | | #??#????#?# "??" ????## | | ##???##?### "?""? ?? ???## | | ??##??#???# k "??"?? ? ? #?# | | ######??### ####### ##########??##???#?#### | | ##?#### #?#?#####?###????#??#?#???#??## | | ####### ###############?##??##?##??#?## | | # # ###??????????##??# | | # # #????##?#??#???######### | | + + ##?##???#??##?##?##??## | | # # | #?#?#??#?#############"# | | # # ##??#?#??# | | # # #?####??## ############# | | !# # ##??#?#?## ##?##?####??? | | # # #?###????# ##????????### | | || # # #???#??### #?#######???? | | | # # ######?### #??####?????? | | | # # ####????## ##?##?##?#### | | # # " #?###### #??????? ???# | | ########### ##############"###"#### ##? "??? ?#? | | ######??### #?###?####???## # ??"" #?# | | ##??####### #####?##??##??# +? " ??# | | ########### ######??????#?# = # ? ? ??# | | ###??###??# ######?#?##?### # ?? ??#? | +----------------------------------------------------+ Best States ------------- Heat Dissipation 52 Energy Generation 41 Energy Capacity 860 Matter Stores 300 Matter Capacity 300 Sight Range 22 Robot Scan Range 20 Terrain Scan Range 24 Terrain Scan Density 210 ECM Strength 3 Jamming Range 16 Power Amplification 40 Additional Mass Support 9 Armor Coverage 450 Resistance: EM 25 Propulsion Shielding 66 Evasion (%) 64 Melee Accuracy 8 Core Analysis 10 Recoil Reduction 5 Offensive Hacking 54 Defensive Hacking 22 Item Schematics ----------------- Imp. Flight Unit | -9/Materials | Scanalyzed Lrg. Storage Unit | -9/Materials | Hacked Adv. Terrain Scanner | -8/Materials | Scanalyzed Adv. Sensor Array | -7/Factory | Scanalyzed Insulated Plating | -7/Factory | Scanalyzed Biomechanical Wings | -6/Factory | Scanalyzed Hacking Suite | -6/Factory | Hacked Adv. ECM Suite | -6/Factory | Scanalyzed Impulse Thruster | -6/Factory | Scanalyzed Imp. Hacking Suite | -5/Factory | Hacked Nuclear Pulse Array | -5/Factory | Hacked Lrn. Sensor Array | -5/Extension | Hacked Imp. Cloaking Device | -5/Extension | Hacked Mic. Fission Core | -5/Extension | Hacked Adv. Hacking Suite | -5/Extension | Hacked Adv. System Shield | -5/Extension | Hacked Adv. Weight Redist. System | -5/Extension | Hacked Overload Amplifier | -5/Extension | Hacked Lrn. Terrain Scanner | -5/Extension | Hacked Force Lance | -5/Extension | Hacked Adv. Terrain Scan Processor | -5/Cetus | Hacked Exp. Terrain Scanner | -4/Factory | Hacked Exp. Cesium-ion Thruster | -3/Research | Hacked Gui. Micro-nuke Launcher | -2/Testing | Hacked Lgt. Antimatter Reactor | -2/Testing | Scanalyzed Lgt. Quantum Reactor | -2/Testing | Hacked Lgt. Regenerative Plating | -2/Testing | Hacked Med. Regenerative Plating | -2/Testing | Hacked Hvy. Regenerative Plating | -2/Testing | Hacked Robot Schematics ------------------ M-36 Artificer | -3/Quarantine | Hacked Fabricated ------------ Adv. Terrain Scanner | x2 | -6/Factory Biomechanical Wings | x1 | -6/Factory Biomechanical Wings | x1 | -6/Factory Lrg. Storage Unit | x1 | -5/Factory Nuclear Pulse Array | x2 | -5/Factory Adv. Hacking Suite | x1 | -4/Factory Adv. Hacking Suite | x1 | -4/Factory Mic. Fission Core | x2 | -4/Factory Exp. Cesium-ion Thruster | x1 | -2/Research Lgt. Regenerative Plating | x1 | -1/Access Alien Tech Used ----------------- Dimensional Node Initializer Subatomic Replicator Core Stripper Matter Drive Achievements -------------- Main Advantage Maximum Efficiency Overachiever Payload Armed Production Line Project G-00 Rampage Revising The Future Challenges ------------ None Game ------ Seed TerrabombArcRouter Manual? 0 Play Time 03:23:59 Cumulative 198.8 hours Start 2019.11.25 @ 18:39:48 End 2019.11.25 @ 23:32:51 Sessions 1 Manual Loads 0 Difficulty Rogue Special Mode None Game No. 268 Rogue 268 Adventurer 0 Explorer 0 Win Type 3 Total 2 Types 1/0/0/1/0/0/0 Lore% 52 Gallery% 74 Achievement% 51 Wizard Run 0 Options --------- ASCII 0 Keyboard 0 Movement Numpad Keybinds 0 Fullscreen 1 Font 16/Terminus Map View 75x55 Tactical HUD 1 Map Filters NONE Filters NONE Steam 1 RUN: 8c3943b1-efc0-458e-b11c-7f9ee261818f